[Event "Late-Titled-Tuesday-Blitz-October-03-2023"]
[Site "Chess.com"]
[Date "2023.10.03"]
[Round "7"]
[White "mishanick"]
[Black "ArtemDyachuk"]
[Result "1-0"]
[WhiteElo "3006"]
[BlackElo "2689"]
[TimeControl "180+1"]
[EndTime "15:16:51 PDT"]
[Termination "mishanick won by checkmate"]

1. d4 {[%clk 0:03:00.9]} 1... Nf6 {[%clk 0:02:59.1]} 2. c4 {[%clk 0:03:01.6]}
2... e6 {[%clk 0:02:59.5]} 3. Nc3 {[%clk 0:03:02.4]} 3... c5 {[%clk 0:02:59]} 4.
d5 {[%clk 0:03:02.5]} 4... exd5 {[%clk 0:02:59.5]} 5. cxd5 {[%clk 0:03:03.4]}
5... d6 {[%clk 0:03:00.4]} 6. e4 {[%clk 0:03:03.6]} 6... g6 {[%clk 0:03:00.9]}
7. Nf3 {[%clk 0:03:04]} 7... Bg7 {[%clk 0:03:00.9]} 8. Be2 {[%clk 0:03:04.9]}
8... O-O {[%clk 0:03:00.1]} 9. Be3 {[%clk 0:03:05.6]} 9... Re8 {[%clk
0:02:50.1]} 10. Nd2 {[%clk 0:03:05.9]} 10... Na6 {[%clk 0:02:50.2]} 11. O-O
{[%clk 0:03:05.6]} 11... Nc7 {[%clk 0:02:50.4]} 12. Bf4 {[%clk 0:03:05.2]} 12...
h6 {[%clk 0:02:36.3]} 13. h3 {[%clk 0:03:04.3]} 13... Rb8 {[%clk 0:02:35]} 14.
a4 {[%clk 0:03:03.5]} 14... b6 {[%clk 0:02:33.6]} 15. Bh2 {[%clk 0:03:02.3]}
15... a6 {[%clk 0:02:28.8]} 16. Nc4 {[%clk 0:02:39]} 16... Nxe4 {[%clk
0:02:25.1]} 17. Nxe4 {[%clk 0:02:38.9]} 17... Rxe4 {[%clk 0:02:26]} 18. Nxd6
{[%clk 0:02:39.3]} 18... Rd4 {[%clk 0:02:23.2]} 19. Qc2 {[%clk 0:02:39]} 19...
Nxd5 {[%clk 0:01:56.3]} 20. Rad1 {[%clk 0:02:22.6]} 20... Be6 {[%clk 0:01:42]}
21. Bxa6 {[%clk 0:02:19.7]} 21... Nb4 {[%clk 0:01:32.5]} 22. Qe2 {[%clk
0:02:19.1]} 22... Nxa6 {[%clk 0:01:20.4]} 23. Qxa6 {[%clk 0:02:20]} 23... Ra8
{[%clk 0:01:14.3]} 24. Qb7 {[%clk 0:02:12.1]} 24... Bd5 {[%clk 0:01:00.9]} 25.
Qxd5 {[%clk 0:01:53.9]} 25... Rxd5 {[%clk 0:01:01.8]} 26. Rxd5 {[%clk
0:01:54.2]} 26... Rxa4 {[%clk 0:00:51.7]} 27. Re1 {[%clk 0:01:46.8]} 27... Kh7
{[%clk 0:00:45.5]} 28. Bg3 {[%clk 0:01:38]} 28... Rd4 {[%clk 0:00:40.2]} 29.
Rxd4 {[%clk 0:01:37.2]} 29... cxd4 {[%clk 0:00:41.1]} 30. Nxf7 {[%clk
0:01:34.4]} 30... Qd5 {[%clk 0:00:40.7]} 31. Nd6 {[%clk 0:01:32.5]} 31... d3
{[%clk 0:00:38.3]} 32. Rd1 {[%clk 0:01:30.5]} 32... Qb3 {[%clk 0:00:25.8]} 33.
Rd2 {[%clk 0:01:29.5]} 33... Bf8 {[%clk 0:00:20.8]} 34. Kh2 {[%clk 0:00:32.1]}
34... Qd5 {[%clk 0:00:16.3]} 35. Ne8 {[%clk 0:00:31]} 35... Qe6 {[%clk
0:00:10.2]} 36. Nc7 {[%clk 0:00:31]} 36... Qe2 {[%clk 0:00:10.2]} 37. Rxe2
{[%clk 0:00:22.2]} 37... dxe2 {[%clk 0:00:11.1]} 38. f4 {[%clk 0:00:22.4]} 38...
Bb4 {[%clk 0:00:09]} 39. Nd5 {[%clk 0:00:21.9]} 39... Bd2 {[%clk 0:00:08.3]} 40.
Bf2 {[%clk 0:00:17.3]} 40... b5 {[%clk 0:00:07.2]} 41. g3 {[%clk 0:00:17.6]}
41... Kg7 {[%clk 0:00:06]} 42. Kg2 {[%clk 0:00:18.1]} 42... b4 {[%clk
0:00:04.7]} 43. Kf3 {[%clk 0:00:18]} 43... e1=Q {[%clk 0:00:04.5]} 44. Bxe1
{[%clk 0:00:18.2]} 44... Bxe1 {[%clk 0:00:05.4]} 45. g4 {[%clk 0:00:18.6]} 45...
Kf7 {[%clk 0:00:05.4]} 46. Ke2 {[%clk 0:00:19.2]} 46... Bg3 {[%clk 0:00:05]} 47.
Ke3 {[%clk 0:00:19.6]} 47... Be1 {[%clk 0:00:04.8]} 48. Ke4 {[%clk 0:00:19.5]}
48... Ke6 {[%clk 0:00:04.5]} 49. Ne3 {[%clk 0:00:19.8]} 49... Bd2 {[%clk
0:00:04.2]} 50. Nc4 {[%clk 0:00:20]} 50... Be1 {[%clk 0:00:04.6]} 51. b3 {[%clk
0:00:20.5]} 51... Bc3 {[%clk 0:00:04.3]} 52. Ne3 {[%clk 0:00:20.8]} 52... Be1
{[%clk 0:00:04.2]} 53. Nd5 {[%clk 0:00:21.3]} 53... Kf7 {[%clk 0:00:03.5]} 54.
Ke5 {[%clk 0:00:21.1]} 54... Bc3+ {[%clk 0:00:03.1]} 55. Kd6 {[%clk 0:00:20.2]}
55... Bd2 {[%clk 0:00:03.2]} 56. Kc5 {[%clk 0:00:20.6]} 56... Ke6 {[%clk
0:00:03.3]} 57. Kd4 {[%clk 0:00:21]} 57... Kd6 {[%clk 0:00:02.9]} 58. Ke4 {[%clk
0:00:20.4]} 58... Ke6 {[%clk 0:00:03.3]} 59. Ne3 {[%clk 0:00:19.3]} 59... Kf6
{[%clk 0:00:02.8]} 60. Nc4 {[%clk 0:00:17.4]} 60... Bc3 {[%clk 0:00:03]} 61. Nb6
{[%clk 0:00:15.4]} 61... Be1 {[%clk 0:00:00.6]} 62. Nd5+ {[%clk 0:00:14.3]}
62... Ke6 {[%clk 0:00:01.2]} 63. f5+ {[%clk 0:00:15.2]} 63... gxf5+ {[%clk
0:00:01.7]} 64. gxf5+ {[%clk 0:00:16.1]} 64... Kf7 {[%clk 0:00:02.2]} 65. Kf3
{[%clk 0:00:15.9]} 65... Bd2 {[%clk 0:00:02.4]} 66. Kg4 {[%clk 0:00:16.6]} 66...
Be1 {[%clk 0:00:02.9]} 67. Kh5 {[%clk 0:00:17.2]} 67... Bd2 {[%clk 0:00:03.5]}
68. h4 {[%clk 0:00:16.9]} 68... Be1 {[%clk 0:00:03.8]} 69. Kg4 {[%clk
0:00:17.3]} 69... Bd2 {[%clk 0:00:04.2]} 70. Kg3 {[%clk 0:00:17.9]} 70... Be1+
{[%clk 0:00:04.4]} 71. Kg4 {[%clk 0:00:18.4]} 71... Bd2 {[%clk 0:00:04.4]} 72.
h5 {[%clk 0:00:19.1]} 72... Be1 {[%clk 0:00:04.2]} 73. Kf3 {[%clk 0:00:19.8]}
73... Bd2 {[%clk 0:00:04.6]} 74. Ke4 {[%clk 0:00:20.5]} 74... Be1 {[%clk
0:00:04.6]} 75. Kd3 {[%clk 0:00:21.2]} 75... Kg7 {[%clk 0:00:04.5]} 76. Ke2
{[%clk 0:00:20.9]} 76... Bh4 {[%clk 0:00:04.7]} 77. Kd3 {[%clk 0:00:18.5]} 77...
Be1 {[%clk 0:00:04.1]} 78. Kd4 {[%clk 0:00:18.6]} 78... Kf7 {[%clk 0:00:03.9]}
79. Ke5 {[%clk 0:00:19]} 79... Bc3+ {[%clk 0:00:03.1]} 80. Kd6 {[%clk
0:00:19.5]} 80... Be1 {[%clk 0:00:03.2]} 81. Kc6 {[%clk 0:00:18.1]} 81... Bd2
{[%clk 0:00:03.2]} 82. Kc5 {[%clk 0:00:18.6]} 82... Be1 {[%clk 0:00:03.7]} 83.
Kc4 {[%clk 0:00:19.2]} 83... Bd2 {[%clk 0:00:03.6]} 84. Kd3 {[%clk 0:00:19.3]}
84... Be1 {[%clk 0:00:03.6]} 85. Ke2 {[%clk 0:00:19.6]} 85... Bh4 {[%clk
0:00:03]} 86. Kf3 {[%clk 0:00:19.9]} 86... Be1 {[%clk 0:00:03.2]} 87. Ke3 {[%clk
0:00:09.1]} 87... Bh4 {[%clk 0:00:02.9]} 88. Ke2 {[%clk 0:00:08.4]} 88... Bg5
{[%clk 0:00:02.1]} 89. Kd3 {[%clk 0:00:07.5]} 89... Bh4 {[%clk 0:00:01.5]} 90.
Nxb4 {[%clk 0:00:08]} 90... Kf6 {[%clk 0:00:02]} 91. Ke4 {[%clk 0:00:08.6]}
91... Kg5 {[%clk 0:00:02.9]} 92. Nd3 {[%clk 0:00:07.7]} 92... Kxh5 {[%clk
0:00:02.9]} 93. b4 {[%clk 0:00:08.4]} 93... Bd8 {[%clk 0:00:02]} 94. Kf4 {[%clk
0:00:07]} 94... Bc7+ {[%clk 0:00:01.9]} 95. Ne5 {[%clk 0:00:07.5]} 95... Kh4
{[%clk 0:00:01.8]} 96. f6 {[%clk 0:00:07.6]} 96... Kh5 {[%clk 0:00:01.5]} 97. b5
{[%clk 0:00:06.9]} 97... Bd6 {[%clk 0:00:02.4]} 98. Kf5 {[%clk 0:00:07]} 98...
Kh4 {[%clk 0:00:02.5]} 99. f7 {[%clk 0:00:06.7]} 99... Kg3 {[%clk 0:00:02.9]}
100. b6 {[%clk 0:00:07.2]} 100... h5 {[%clk 0:00:03.4]} 101. b7 {[%clk
0:00:07.9]} 101... h4 {[%clk 0:00:04.3]} 102. b8=Q {[%clk 0:00:08.4]} 102...
Bxb8 {[%clk 0:00:04.7]} 103. f8=Q {[%clk 0:00:09]} 103... Bxe5 {[%clk
0:00:04.8]} 104. Qg8+ {[%clk 0:00:09.1]} 104... Kf2 {[%clk 0:00:04]} 105. Kxe5
{[%clk 0:00:09.5]} 105... h3 {[%clk 0:00:04.6]} 106. Qf7+ {[%clk 0:00:10.2]}
106... Kg2 {[%clk 0:00:04.7]} 107. Qg6+ {[%clk 0:00:10.7]} 107... Kf2 {[%clk
0:00:05.2]} 108. Qf5+ {[%clk 0:00:11.3]} 108... Kg2 {[%clk 0:00:04.8]} 109. Qg4+
{[%clk 0:00:11.9]} 109... Kh2 {[%clk 0:00:05.3]} 110. Kf4 {[%clk 0:00:12.3]}
110... Kh1 {[%clk 0:00:05.7]} 111. Qe2 {[%clk 0:00:12.1]} 111... Kg1 {[%clk
0:00:06.6]} 112. Kg3 {[%clk 0:00:12.4]} 112... h2 {[%clk 0:00:06.8]} 113. Qe1#
{[%clk 0:00:13.3]} 1-0

[Event "Late-Titled-Tuesday-Blitz-October-03-2023"]
[Site "Chess.com"]
[Date "2023.10.03"]
[Round "8"]
[White "Chempiblinka"]
[Black "PNEPaul"]
[Result "1-0"]
[WhiteElo "2302"]
[BlackElo "1964"]
[TimeControl "180+1"]
[EndTime "15:20:24 PDT"]
[Termination "Chempiblinka won by resignation"]

1. Nf3 {[%clk 0:02:59.2]} 1... a6 {[%clk 0:02:48.5]} 2. g3 {[%clk 0:02:58.4]}
2... d6 {[%clk 0:02:48.6]} 3. Bg2 {[%clk 0:02:59.2]} 3... g6 {[%clk 0:02:49]} 4.
O-O {[%clk 0:02:59.9]} 4... Bg7 {[%clk 0:02:49]} 5. d4 {[%clk 0:03:00.8]} 5...
h6 {[%clk 0:02:49.2]} 6. c4 {[%clk 0:03:01.3]} 6... Nd7 {[%clk 0:02:47.5]} 7. e4
{[%clk 0:03:01.8]} 7... e6 {[%clk 0:02:47.7]} 8. Nc3 {[%clk 0:03:02.1]} 8... Ne7
{[%clk 0:02:47.7]} 9. Be3 {[%clk 0:03:02.1]} 9... O-O {[%clk 0:02:47.6]} 10. Qd2
{[%clk 0:03:02.7]} 10... Kh7 {[%clk 0:02:47.1]} 11. Rad1 {[%clk 0:02:59.7]}
11... Nf6 {[%clk 0:02:46.9]} 12. e5 {[%clk 0:02:57.4]} 12... Ng4 {[%clk
0:02:46.4]} 13. exd6 {[%clk 0:02:52.5]} 13... cxd6 {[%clk 0:02:45.9]} 14. Bf4
{[%clk 0:02:52.9]} 14... g5 {[%clk 0:02:35.8]} 15. Qc2+ {[%clk 0:02:50.6]} 15...
f5 {[%clk 0:02:34.4]} 16. Bc1 {[%clk 0:02:44.9]} 16... Qe8 {[%clk 0:02:09.2]}
17. h4 {[%clk 0:02:41.8]} 17... Qg6 {[%clk 0:02:01.4]} 18. hxg5 {[%clk
0:02:40.6]} 18... hxg5 {[%clk 0:01:55.1]} 19. Bxg5 {[%clk 0:02:37.1]} 19... Rf7
{[%clk 0:01:27.1]} 20. Ne2 {[%clk 0:02:35.7]} 20... Qh5 {[%clk 0:01:25.1]} 21.
Nf4 {[%clk 0:02:32.6]} 1-0

[Event "Late-Titled-Tuesday-Blitz-October-03-2023"]
[Site "Chess.com"]
[Date "2023.10.03"]
[Round "8"]
[White "Aleksandar-Topalov"]
[Black "Bauman_Guy"]
[Result "0-1"]
[WhiteElo "2439"]
[BlackElo "2855"]
[TimeControl "180+1"]
[EndTime "15:21:04 PDT"]
[Termination "Bauman_Guy won by resignation"]

1. b3 {[%clk 0:03:00.9]} 1... g6 {[%clk 0:02:59.9]} 2. Bb2 {[%clk 0:03:00.3]}
2... Nf6 {[%clk 0:03:00.8]} 3. Bxf6 {[%clk 0:03:00.2]} 3... exf6 {[%clk
0:03:01.7]} 4. c4 {[%clk 0:03:00.3]} 4... Bg7 {[%clk 0:03:02.6]} 5. Nc3 {[%clk
0:03:00.3]} 5... f5 {[%clk 0:03:03.5]} 6. e3 {[%clk 0:03:00.6]} 6... O-O {[%clk
0:03:02.6]} 7. Nge2 {[%clk 0:03:00.8]} 7... Nc6 {[%clk 0:02:59.1]} 8. d4 {[%clk
0:03:00.2]} 8... Re8 {[%clk 0:02:47.2]} 9. g3 {[%clk 0:03:00.3]} 9... f4 {[%clk
0:02:36.5]} 10. gxf4 {[%clk 0:02:52.5]} 10... Qh4 {[%clk 0:02:36.2]} 11. Nd5
{[%clk 0:02:41.1]} 11... d6 {[%clk 0:02:36.3]} 12. Nxc7 {[%clk 0:02:37.1]} 12...
Rxe3 {[%clk 0:02:36]} 13. Qd2 {[%clk 0:02:19.5]} 13... Nxd4 {[%clk 0:02:26.9]}
14. O-O-O {[%clk 0:02:08.1]} 14... Nxe2+ {[%clk 0:02:10.3]} 15. Bxe2 {[%clk
0:02:03.9]} 15... Qf6 {[%clk 0:01:54.7]} 16. fxe3 {[%clk 0:01:47.4]} 16... Qa1+
{[%clk 0:01:52.2]} 17. Kc2 {[%clk 0:01:47.5]} 17... Bf5+ {[%clk 0:01:52.8]} 18.
e4 {[%clk 0:01:23.4]} 18... Bxe4+ {[%clk 0:01:52.8]} 0-1

[Event "Late-Titled-Tuesday-Blitz-October-03-2023"]
[Site "Chess.com"]
[Date "2023.10.03"]
[Round "8"]
[White "szachmistrz2500"]
[Black "jaskol95"]
[Result "1-0"]
[WhiteElo "2440"]
[BlackElo "2606"]
[TimeControl "180+1"]
[EndTime "15:21:15 PDT"]
[Termination "szachmistrz2500 won by resignation"]

1. Nf3 {[%clk 0:02:54.4]} 1... d5 {[%clk 0:03:00.4]} 2. g3 {[%clk 0:02:54.5]}
2... Nd7 {[%clk 0:03:00.9]} 3. Bg2 {[%clk 0:02:55]} 3... e5 {[%clk 0:03:01.2]}
4. d3 {[%clk 0:02:55.1]} 4... Ngf6 {[%clk 0:03:01.7]} 5. O-O {[%clk 0:02:55.1]}
5... Bd6 {[%clk 0:03:00.6]} 6. Nbd2 {[%clk 0:02:55.5]} 6... O-O {[%clk
0:03:00.1]} 7. e4 {[%clk 0:02:55.9]} 7... c6 {[%clk 0:03:00.4]} 8. c3 {[%clk
0:02:46.3]} 8... Re8 {[%clk 0:03:00.1]} 9. Re1 {[%clk 0:02:46]} 9... Nf8 {[%clk
0:02:59.2]} 10. Qe2 {[%clk 0:02:45.2]} 10... Bg4 {[%clk 0:02:53.9]} 11. h3
{[%clk 0:02:44.6]} 11... Bxf3 {[%clk 0:02:54.3]} 12. Nxf3 {[%clk 0:02:43.9]}
12... h6 {[%clk 0:02:49.8]} 13. Bd2 {[%clk 0:02:37.1]} 13... Ng6 {[%clk
0:02:43.4]} 14. Rad1 {[%clk 0:02:35.1]} 14... Qa5 {[%clk 0:02:36.8]} 15. a3
{[%clk 0:02:31.7]} 15... Qb6 {[%clk 0:02:37]} 16. Bc1 {[%clk 0:02:31]} 16...
Rad8 {[%clk 0:02:33.1]} 17. Nh2 {[%clk 0:02:22.5]} 17... Qb3 {[%clk 0:02:21.4]}
18. Ng4 {[%clk 0:02:17.5]} 18... Nxg4 {[%clk 0:02:19.8]} 19. Qxg4 {[%clk
0:02:17.6]} 19... Bc5 {[%clk 0:02:15.8]} 20. h4 {[%clk 0:02:00.4]} 20... Kh8
{[%clk 0:02:02.1]} 21. h5 {[%clk 0:01:58.3]} 21... Nf8 {[%clk 0:02:02.3]} 22.
exd5 {[%clk 0:01:53.2]} 22... cxd5 {[%clk 0:02:00.6]} 23. d4 {[%clk 0:01:44.8]}
23... exd4 {[%clk 0:01:53.7]} 24. Rxe8 {[%clk 0:01:44.7]} 24... Rxe8 {[%clk
0:01:52.7]} 25. cxd4 {[%clk 0:01:45]} 25... Be7 {[%clk 0:01:43.6]} 26. Qf3
{[%clk 0:01:36.8]} 26... Bf6 {[%clk 0:01:40.9]} 27. Qxb3 {[%clk 0:01:36.3]} 1-0

[Event "Late-Titled-Tuesday-Blitz-October-03-2023"]
[Site "Chess.com"]
[Date "2023.10.03"]
[Round "8"]
[White "Rutricks"]
[Black "maksimys18"]
[Result "1-0"]
[WhiteElo "2692"]
[BlackElo "2521"]
[TimeControl "180+1"]
[EndTime "15:21:21 PDT"]
[Termination "Rutricks won by checkmate"]

1. g4 {[%clk 0:02:53.6]} 1... e6 {[%clk 0:03:00.4]} 2. Bg2 {[%clk 0:02:52.8]}
2... d5 {[%clk 0:03:01.1]} 3. c3 {[%clk 0:02:53]} 3... c5 {[%clk 0:03:01.8]} 4.
e4 {[%clk 0:02:52.6]} 4... Nc6 {[%clk 0:03:02]} 5. exd5 {[%clk 0:02:49.9]} 5...
exd5 {[%clk 0:03:02.9]} 6. h3 {[%clk 0:02:50.3]} 6... Nf6 {[%clk 0:03:02.5]} 7.
d4 {[%clk 0:02:50]} 7... cxd4 {[%clk 0:03:02]} 8. cxd4 {[%clk 0:02:50.6]} 8...
Bd6 {[%clk 0:03:02.1]} 9. Nf3 {[%clk 0:02:48.5]} 9... O-O {[%clk 0:03:01.7]} 10.
O-O {[%clk 0:02:49.1]} 10... h5 {[%clk 0:03:01.3]} 11. g5 {[%clk 0:02:49.3]}
11... Ne4 {[%clk 0:03:01.3]} 12. Nc3 {[%clk 0:02:49.9]} 12... Nxc3 {[%clk
0:03:00.4]} 13. bxc3 {[%clk 0:02:50.8]} 13... g6 {[%clk 0:02:59.8]} 14. Ne1
{[%clk 0:02:38.5]} 14... Bc7 {[%clk 0:02:54.9]} 15. Nd3 {[%clk 0:02:38.2]} 15...
Bf5 {[%clk 0:02:53.6]} 16. Bf4 {[%clk 0:02:32.2]} 16... Bxd3 {[%clk 0:02:39.4]}
17. Bxc7 {[%clk 0:02:31.4]} 17... Qxc7 {[%clk 0:02:38.7]} 18. Qxd3 {[%clk
0:02:31.8]} 18... Qf4 {[%clk 0:02:37.5]} 19. Qe3 {[%clk 0:02:22.2]} 19... Qxe3
{[%clk 0:02:35]} 20. fxe3 {[%clk 0:02:22.4]} 20... Rfe8 {[%clk 0:02:30.8]} 21.
Bxd5 {[%clk 0:02:20.4]} 21... Rxe3 {[%clk 0:02:29.6]} 22. Rxf7 {[%clk
0:02:19.2]} 22... Kh8 {[%clk 0:02:24]} 23. Rxb7 {[%clk 0:02:15.2]} 23... Rc8
{[%clk 0:02:15.6]} 24. Rf1 {[%clk 0:01:44]} 24... Ne7 {[%clk 0:02:14]} 25. c4
{[%clk 0:01:21.5]} 25... Nf5 {[%clk 0:02:11.7]} 26. Rxf5 {[%clk 0:00:58.8]}
26... gxf5 {[%clk 0:02:08]} 27. Kf2 {[%clk 0:00:59.5]} 27... f4 {[%clk
0:02:04.5]} 28. g6 {[%clk 0:00:59.9]} 28... Rg3 {[%clk 0:02:04.4]} 29. Rh7#
{[%clk 0:00:59.5]} 1-0

[Event "Late-Titled-Tuesday-Blitz-October-03-2023"]
[Site "Chess.com"]
[Date "2023.10.03"]
[Round "8"]
[White "KamilGrycel"]
[Black "reevecanada"]
[Result "0-1"]
[WhiteElo "2471"]
[BlackElo "2576"]
[TimeControl "180+1"]
[EndTime "15:21:53 PDT"]
[Termination "reevecanada won by resignation"]

1. d4 {[%clk 0:03:00.9]} 1... Nf6 {[%clk 0:02:58.9]} 2. Nf3 {[%clk 0:03:00.8]}
2... g6 {[%clk 0:02:59.4]} 3. Bf4 {[%clk 0:03:00.8]} 3... Bg7 {[%clk 0:02:59.9]}
4. e3 {[%clk 0:03:01.3]} 4... O-O {[%clk 0:03:00.3]} 5. h3 {[%clk 0:03:01.6]}
5... d5 {[%clk 0:03:00.1]} 6. Nbd2 {[%clk 0:03:00.6]} 6... c5 {[%clk 0:03:00.3]}
7. c3 {[%clk 0:03:00.4]} 7... Nbd7 {[%clk 0:02:59.4]} 8. Be2 {[%clk 0:02:58.5]}
8... a6 {[%clk 0:02:59.2]} 9. O-O {[%clk 0:02:57.5]} 9... b6 {[%clk 0:02:59.3]}
10. a4 {[%clk 0:02:54.1]} 10... Bb7 {[%clk 0:02:59.3]} 11. Ne5 {[%clk
0:02:52.7]} 11... Nxe5 {[%clk 0:02:57.2]} 12. Bxe5 {[%clk 0:02:52.7]} 12... Nd7
{[%clk 0:02:56.4]} 13. Bxg7 {[%clk 0:02:52.1]} 13... Kxg7 {[%clk 0:02:57.3]} 14.
f4 {[%clk 0:02:45.3]} 14... e6 {[%clk 0:02:56.6]} 15. Nf3 {[%clk 0:02:37]} 15...
f6 {[%clk 0:02:55.5]} 16. b4 {[%clk 0:02:03.4]} 16... c4 {[%clk 0:02:44.3]} 17.
e4 {[%clk 0:01:20.7]} 17... dxe4 {[%clk 0:02:41]} 18. Nd2 {[%clk 0:01:20.9]}
18... b5 {[%clk 0:02:40.6]} 19. Qc2 {[%clk 0:01:14.5]} 19... f5 {[%clk
0:02:39.7]} 20. Rfd1 {[%clk 0:01:10.8]} 20... Nb6 {[%clk 0:02:38.9]} 21. a5
{[%clk 0:01:01.9]} 21... Nd5 {[%clk 0:02:36.5]} 22. Nf1 {[%clk 0:00:59.2]} 22...
Nxf4 {[%clk 0:02:35.2]} 23. Qd2 {[%clk 0:00:58.9]} 23... Nd5 {[%clk 0:02:34.9]}
24. Re1 {[%clk 0:00:56.7]} 24... h6 {[%clk 0:02:34.5]} 25. Bd1 {[%clk
0:00:56.8]} 25... Qg5 {[%clk 0:02:33.4]} 26. Qf2 {[%clk 0:00:55]} 26... Nxc3
{[%clk 0:02:32.2]} 27. Bc2 {[%clk 0:00:53]} 27... Nd5 {[%clk 0:02:31.9]} 28. Ne3
{[%clk 0:00:51.7]} 28... Nxb4 {[%clk 0:02:31.5]} 29. Bb1 {[%clk 0:00:51]} 29...
Nd5 {[%clk 0:02:31.2]} 30. Nxd5 {[%clk 0:00:49.5]} 30... exd5 {[%clk 0:02:30.8]}
31. Ra3 {[%clk 0:00:48.7]} 31... Qf6 {[%clk 0:02:30.1]} 32. Rg3 {[%clk
0:00:48.3]} 32... Kh7 {[%clk 0:02:29.7]} 33. Qf4 {[%clk 0:00:46.6]} 33... Qxd4+
{[%clk 0:02:28.6]} 34. Kh2 {[%clk 0:00:46.7]} 34... Qf6 {[%clk 0:02:28.2]} 35.
h4 {[%clk 0:00:42.8]} 35... d4 {[%clk 0:02:27.2]} 36. h5 {[%clk 0:00:41.4]}
36... g5 {[%clk 0:02:26.6]} 37. Qc7+ {[%clk 0:00:40.9]} 37... Rf7 {[%clk
0:02:26]} 38. Qc5 {[%clk 0:00:41.2]} 38... Rc8 {[%clk 0:02:23.8]} 39. Qa7 {[%clk
0:00:40.5]} 39... Bd5 {[%clk 0:02:21.8]} 40. Qb6 {[%clk 0:00:37.6]} 40... Qxb6
{[%clk 0:02:21.6]} 41. axb6 {[%clk 0:00:38.5]} 41... Rb8 {[%clk 0:02:21.6]} 0-1

[Event "Late-Titled-Tuesday-Blitz-October-03-2023"]
[Site "Chess.com"]
[Date "2023.10.03"]
[Round "8"]
[White "MathiasCasalaspro"]
[Black "Triumphmate"]
[Result "0-1"]
[WhiteElo "2354"]
[BlackElo "2506"]
[TimeControl "180+1"]
[EndTime "15:22:06 PDT"]
[Termination "Triumphmate won on time"]

1. e4 {[%clk 0:03:00.9]} 1... d5 {[%clk 0:03:00.9]} 2. exd5 {[%clk 0:02:58.5]}
2... Nf6 {[%clk 0:03:01.6]} 3. d4 {[%clk 0:02:58.1]} 3... Bg4 {[%clk 0:03:01.6]}
4. Be2 {[%clk 0:02:51.3]} 4... Bxe2 {[%clk 0:03:00]} 5. Nxe2 {[%clk 0:02:52.2]}
5... Qxd5 {[%clk 0:03:00.5]} 6. O-O {[%clk 0:02:52.5]} 6... Nc6 {[%clk
0:03:00.8]} 7. Nbc3 {[%clk 0:02:49.4]} 7... Qh5 {[%clk 0:03:00.4]} 8. Nf4 {[%clk
0:02:45.2]} 8... Qxd1 {[%clk 0:02:59.5]} 9. Rxd1 {[%clk 0:02:46.1]} 9... O-O-O
{[%clk 0:03:00.2]} 10. Be3 {[%clk 0:02:45.1]} 10... e6 {[%clk 0:02:58.5]} 11. d5
{[%clk 0:02:33.3]} 11... exd5 {[%clk 0:02:55.2]} 12. Nfxd5 {[%clk 0:02:33.7]}
12... Nxd5 {[%clk 0:02:55.5]} 13. Rxd5 {[%clk 0:02:34.1]} 13... Bd6 {[%clk
0:02:55.3]} 14. a3 {[%clk 0:02:28.2]} 14... Rhe8 {[%clk 0:02:52.6]} 15. Rad1
{[%clk 0:02:28.1]} 15... Ne5 {[%clk 0:02:50.1]} 16. b3 {[%clk 0:02:19.6]} 16...
Bxa3 {[%clk 0:02:47.5]} 17. Rxd8+ {[%clk 0:02:02.4]} 17... Rxd8 {[%clk
0:02:48.4]} 18. Rxd8+ {[%clk 0:02:03.1]} 18... Kxd8 {[%clk 0:02:49.3]} 19. Nb5
{[%clk 0:02:03.8]} 19... Be7 {[%clk 0:02:42.4]} 20. Nxa7 {[%clk 0:02:01.9]}
20... c6 {[%clk 0:02:42.6]} 21. Bb6+ {[%clk 0:01:32.4]} 21... Kd7 {[%clk
0:02:42.5]} 22. Bd4 {[%clk 0:01:24.2]} 22... Bf6 {[%clk 0:02:40.4]} 23. Be3
{[%clk 0:01:04.9]} 23... Ng4 {[%clk 0:02:39.6]} 24. Bb6 {[%clk 0:00:57.7]} 24...
Bd8 {[%clk 0:02:39.4]} 25. Bd4 {[%clk 0:00:29.5]} 25... Kc7 {[%clk 0:02:38.6]}
26. b4 {[%clk 0:00:24.1]} 26... Bf6 {[%clk 0:02:35.5]} 27. Bxf6 {[%clk
0:00:11.1]} 27... Nxf6 {[%clk 0:02:35.4]} 28. b5 {[%clk 0:00:11.8]} 28... Ne4
{[%clk 0:02:31.7]} 29. c4 {[%clk 0:00:09.4]} 29... Nd6 {[%clk 0:02:31.8]} 30.
bxc6 {[%clk 0:00:04.1]} 30... bxc6 {[%clk 0:02:31.5]} 31. c5 {[%clk 0:00:04.3]}
31... Ne4 {[%clk 0:02:31.7]} 32. Kf1 {[%clk 0:00:03.4]} 32... Kb7 {[%clk
0:02:31.9]} 0-1

[Event "Late-Titled-Tuesday-Blitz-October-03-2023"]
[Site "Chess.com"]
[Date "2023.10.03"]
[Round "8"]
[White "MajorCoast"]
[Black "egnfanclub"]
[Result "0-1"]
[WhiteElo "2249"]
[BlackElo "2382"]
[TimeControl "180+1"]
[EndTime "15:22:36 PDT"]
[Termination "egnfanclub won by resignation"]

1. d4 {[%clk 0:02:54.5]} 1... d5 {[%clk 0:02:59.6]} 2. Nf3 {[%clk 0:02:53.8]}
2... Nf6 {[%clk 0:02:59.5]} 3. e3 {[%clk 0:02:54]} 3... e6 {[%clk 0:02:57.9]} 4.
c4 {[%clk 0:02:54.2]} 4... c6 {[%clk 0:02:57.8]} 5. b3 {[%clk 0:02:54.4]} 5...
Bb4+ {[%clk 0:02:53.2]} 6. Nbd2 {[%clk 0:02:53.5]} 6... Ne4 {[%clk 0:02:33.1]}
7. Bd3 {[%clk 0:02:51.5]} 7... Nd7 {[%clk 0:02:21.6]} 8. O-O {[%clk 0:02:48.4]}
8... Nxd2 {[%clk 0:02:21.1]} 9. Bxd2 {[%clk 0:02:47.1]} 9... Bd6 {[%clk
0:02:18.9]} 10. e4 {[%clk 0:02:42.7]} 10... dxe4 {[%clk 0:02:17.9]} 11. Bxe4
{[%clk 0:02:42.8]} 11... Nf6 {[%clk 0:02:17.4]} 12. Bg5 {[%clk 0:02:42.3]} 12...
h6 {[%clk 0:02:17.5]} 13. Bxf6 {[%clk 0:02:30.2]} 13... Qxf6 {[%clk 0:02:18.4]}
14. Re1 {[%clk 0:02:25.4]} 14... O-O {[%clk 0:02:17.4]} 15. Bc2 {[%clk
0:02:22.1]} 15... Bb4 {[%clk 0:02:02.3]} 16. Qd3 {[%clk 0:02:07.6]} 16... g6
{[%clk 0:02:02.4]} 17. Re4 {[%clk 0:02:02.2]} 17... c5 {[%clk 0:02:01.6]} 18.
Rg4 {[%clk 0:01:49.1]} 18... cxd4 {[%clk 0:01:49.5]} 19. a3 {[%clk 0:01:34.5]}
19... e5 {[%clk 0:01:35.5]} 20. Rxg6+ {[%clk 0:01:06.9]} 20... fxg6 {[%clk
0:01:32.8]} 21. axb4 {[%clk 0:01:07.8]} 21... Bf5 {[%clk 0:01:30]} 22. Qd2
{[%clk 0:01:03.4]} 22... Bxc2 {[%clk 0:01:19.3]} 23. Qxc2 {[%clk 0:01:02.4]}
23... d3 {[%clk 0:01:07.9]} 24. Qxd3 {[%clk 0:00:56.6]} 24... e4 {[%clk
0:01:08.4]} 25. Qd5+ {[%clk 0:00:56.7]} 25... Kh8 {[%clk 0:01:03.4]} 26. Ne5
{[%clk 0:00:54.7]} 26... Qxf2+ {[%clk 0:01:01.2]} 0-1